fUST/lending_fUST_20240703
["ID","MTS","AMOUNT","RATE_DAILY","PERIOD"]
[330939455,1719954647781,-500.0,0.00014064,2]
[330939456,1719954647790,-606.21181445,0.00014064,2]
[330939457,1719954647799,-500.0,0.00014064,2]
[330939458,1719954647808,-526.19,0.00014064,2]
[330939459,1719954647818,-1069.26,0.00014064,2]
[330939460,1719954647827,-507.62794616,0.00014064,2]
[330939461,1719954647836,-508.28836786,0.00014064,2]
[330939462,1719954647845,-500.0,0.00014064,2]
[330939463,1719954647854,-500.0,0.00014064,2]
[330939464,1719954647862,-500.0,0.00014064,2]
[330939465,1719954647871,-500.0,0.00014064,2]
[330939466,1719954647881,-500.0,0.00014064,2]
[330939467,1719954647890,-999.26,0.00014064,2]
[330939468,1719954647899,-500.0,0.00014064,2]
[330939469,1719954647909,-500.0,0.00014064,2]
[330939470,1719954647919,-505.21974194,0.00014064,2]
[330939471,1719954647927,-500.0,0.00014064,2]
[330939472,1719954647937,-500.0,0.00014064,2]
[330939473,1719954647946,-500.0,0.00014064,2]
[330939474,1719954647955,-500.0,0.00014064,2]
[330939475,1719954647964,-500.0,0.00014064,2]
[330939476,1719954647973,-580.02,0.00014064,2]
[330939477,1719954647982,-520.76,0.00014064,2]
[330939478,1719954647993,-500.0,0.00014064,2]
[330939479,1719954648002,-814.91,0.00014064,2]
[330939480,1719954648011,-500.0,0.00014064,2]
[330939481,1719954648022,-1259.8,0.00014064,2]
[330939482,1719954648032,-588.18,0.00014064,2]
[330939483,1719954648041,-500.0,0.00014064,2]
[330939484,1719954648050,-500.0,0.00014064,2]
[330939485,1719954648060,-500.0,0.00014064,2]
[330939486,1719954648073,-514.86,0.00014064,2]
[330939487,1719954648082,-712.85,0.00014064,2]
[330939488,1719954648091,-500.0,0.00014064,2]
[330939489,1719954648100,-504.14842732,0.00014065,2]
[330939490,1719954648110,-978.54,0.00014065,2]
[330939491,1719954648119,-500.0,0.00014065,2]
[330939492,1719954648128,-505.2543302,0.00014065,2]
[330939493,1719954648137,-503.38758988,0.00014065,2]
[330939494,1719954648147,-500.0,0.00014065,2]
[330939495,1719954648156,-500.0,0.00014065,2]
[330939496,1719954648165,-500.0,0.00014065,2]
[330939497,1719954648175,-500.0,0.00014065,2]
[330939498,1719954648184,-619.4,0.00014065,2]
[330939499,1719954648193,-500.0,0.00014065,2]
[330939500,1719954648202,-500.0,0.00014065,2]
[330939501,1719954648212,-533.28596553,0.00014065,2]
[330939502,1719954648222,-500.0,0.00014065,2]
[330939503,1719954648231,-739.74,0.00014065,2]
[330939504,1719954648241,-500.0,0.00014065,2]
[330939505,1719954648251,-513.06407629,0.00014065,2]
[330939506,1719954648260,-576.35,0.00014065,2]
[330939507,1719954648270,-634.14,0.00014065,2]
[330939508,1719954648279,-807.88,0.00014065,2]
[330939509,1719954648288,-617.83,0.00014065,2]
[330939510,1719954648298,-519.54314253,0.00014065,2]
[330939511,1719954648307,-500.0,0.00014065,2]
[330939512,1719954648318,-500.0,0.00014065,2]
[330939513,1719954648327,-500.0,0.00014065,2]
[330939514,1719954648337,-647.57,0.00014065,2]
[330939515,1719954648346,-500.0,0.00014065,2]
[330939516,1719954648356,-500.0,0.00014065,2]
[330939517,1719954648365,-500.0,0.00014065,2]
[330939518,1719954648375,-500.0,0.00014065,2]
[330939519,1719954648384,-500.0,0.00014065,2]
[330939520,1719954648520,-500.0,0.00014065,2]
[330939521,1719954648532,-500.0,0.00014066,2]
[330939522,1719954648545,-500.0,0.00014066,2]
[330939523,1719954648554,-723.55,0.00014066,2]
[330939524,1719954648563,-12196.71,0.00014066,2]
[330939525,1719954648575,-500.0,0.00014066,2]
[330939526,1719954648584,-6394.19,0.00014066,2]
[330939527,1719954648594,-500.0,0.00014066,2]
[330939528,1719954648604,-3416.15,0.00014066,2]
[330939529,1719954648614,-500.0,0.00014066,2]
[330939530,1719954648627,-500.0,0.00014066,2]
[330939531,1719954648636,-500.0,0.00014066,2]
[330939532,1719954648646,-500.0,0.00014066,2]
[330939533,1719954648655,-4113.83,0.00014066,2]
[330939534,1719954648664,-500.0,0.00014066,2]
[330939535,1719954648673,-500.0,0.00014066,2]
[330939536,1719954648682,-4219.05,0.00014066,2]
[330939537,1719954648700,-1507.1,0.00014066,2]
[330939538,1719954648712,-551.58,0.00014066,2]
[330939539,1719954648722,-4448.97,0.00014066,2]
[330939540,1719954648731,-998.72,0.00014066,2]
[330939541,1719954648741,-556.10385896,0.00014066,2]
[330939542,1719954648751,-8179.43,0.00014066,2]
[330939543,1719954648760,-500.0,0.00014066,2]
[330939544,1719954648770,-1108.76,0.00014066,2]
[330939545,1719954648780,-514.86,0.00014066,2]
[330939546,1719954648791,-6831.37,0.00014066,2]
[330939547,1719954648802,-500.0,0.00014067,2]
[330939548,1719954648811,-500.0,0.00014067,2]
[330939549,1719954648821,-500.0,0.00014067,2]
[330939550,1719954648832,-500.0,0.00014067,2]
[330939551,1719954648841,-500.0,0.00014067,2]
[330939552,1719954648852,-5199.49,0.00014067,2]
[330939553,1719954648863,-500.0,0.00014085,2]
[330939554,1719954648873,-500.0,0.00014085,2]
[330939555,1719954648884,-153.0,0.00014272,2]
[330939556,1719954648894,-153.0,0.00014272,2]
[330939557,1719954648905,-153.0,0.00014272,2]
[330939558,1719954648914,-153.0,0.00014272,2]
[330939559,1719954648924,-153.0,0.00014275,2]
[330939560,1719954648934,-153.0,0.00014279,2]
[330939561,1719954648945,-153.0,0.00014279,2]
[330939562,1719954648955,-2927.31,0.00014336,2]
[330939563,1719954648965,-1273.37,0.00014336,2]
[330939564,1719954648975,-633.36,0.00014336,2]
[330939565,1719954648985,-500.0,0.00014336,2]
[330939566,1719954648994,-1769.97,0.00014336,2]
[330939567,1719954649004,-2119.11,0.00014336,2]
[330939568,1719954649015,-2303.52,0.00014336,2]
[330939569,1719954649025,-1174.15,0.00014336,2]
[330939570,1719954649036,-14315.91,0.00014336,2]
[330939571,1719954649045,-480.55,0.00014336,2]
[330939572,1719954649055,-514.86,0.00014336,2]
[330939573,1719954649064,-514.86,0.00014336,2]
[330939574,1719954649075,-582.03466499,0.00014337,2]
[330939575,1719954649084,-505.85,0.00014337,2]
[330939576,1719954649094,-281.26,0.00014337,2]
[330939577,1719954649103,-500.0,0.00014337,2]
[330939578,1719954649113,-1059.78,0.00014337,2]
[330939579,1719954649123,-500.0,0.00014337,2]
[330939580,1719954649133,-500.0,0.00014337,2]
[330939581,1719954649143,-154.14,0.00014337,2]
[330939582,1719954649152,-500.0,0.00014337,2]
[330939583,1719954649162,-561.22,0.00014337,2]
[330939584,1719954649171,-500.0,0.00014337,2]
[330939585,1719954649181,-1209.66,0.00014337,2]
[330939586,1719954649191,-500.0,0.00014337,2]
[330939587,1719954649201,-500.0,0.00014337,2]
[330939588,1719954649211,-500.0,0.00014337,2]
[330939589,1719954649220,-500.0,0.00014337,2]
[330939590,1719954649230,-996.24,0.00014337,2]
[330939591,1719954649240,-500.0,0.00014337,2]
[330939592,1719954649250,-1240.12,0.00014337,2]
[330939593,1719954649260,-463.34,0.00014337,2]
[330939594,1719954649270,-500.0,0.00014337,2]
[330939595,1719954649279,-543.8,0.00014337,2]
[330939596,1719954649289,-500.0,0.00014337,2]
[330939597,1719954649299,-540.53,0.00014337,2]
[330939598,1719954649309,-370.98,0.00014337,2]
[330939599,1719954649318,-602.41,0.00014337,2]
[330939600,1719954649328,-511.4,0.00014337,2]
[330939601,1719954649337,-296.07,0.00014337,2]
[330939602,1719954649346,-445.37,0.00014337,2]
[330939603,1719954649356,-504.12,0.00014337,2]
[330939604,1719954649365,-566.44,0.00014337,2]
[330939605,1719954649375,-463.09,0.00014337,2]
[330939606,1719954649384,-500.0,0.00014337,2]
[330939607,1719954649394,-1051.05,0.00014337,2]
[330939608,1719954649403,-500.0,0.00014337,2]
[330939609,1719954649412,-500.0,0.00014337,2]
[330939610,1719954649422,-500.0,0.00014337,2]
[330939611,1719954649431,-338.31,0.00014337,2]
[330939612,1719954649441,-257.23,0.00014337,2]
[330939613,1719954649450,-3811.8,0.00014337,2]
[330939614,1719954649460,-500.0,0.00014337,2]
[330939615,1719954649470,-500.0,0.00014337,2]
[330939616,1719954649479,-283.18,0.00014337,2]
[330939617,1719954649488,-500.0,0.00014337,2]
[330939618,1719954649497,-500.0,0.00014337,2]
[330939619,1719954649507,-500.0,0.00014337,2]
[330939620,1719954649517,-500.0,0.00014337,2]
[330939621,1719954649527,-602.0,0.00014337,2]
[330939622,1719954649538,-249.64,0.00014337,2]
[330939623,1719954649551,-590.78,0.00014337,2]
[330939624,1719954649561,-500.0,0.00014337,2]
[330939625,1719954649570,-592.62,0.00014337,2]
[330939626,1719954649582,-500.0,0.00014337,2]
[330939627,1719954649591,-500.0,0.00014337,2]
[330939628,1719954649603,-500.0,0.00014337,2]
[330939629,1719954649613,-590.09,0.00014337,2]
[330939630,1719954649624,-996.56,0.00014337,2]
[330939631,1719954649634,-500.0,0.00014337,2]
[330939632,1719954649644,-4724.55,0.00014337,2]
[330939633,1719954649653,-690.54,0.00014337,2]
[330939634,1719954649662,-500.0,0.00014337,2]
[330939635,1719954649672,-320.25,0.00014337,2]
[330939636,1719954649681,-159.62,0.00014337,2]
[330939637,1719954649690,-439.67,0.00014337,2]
[330939638,1719954649699,-172.79,0.00014337,2]
[330939639,1719954649708,-756.32,0.00014337,2]
[330939640,1719954649718,-500.0,0.00014337,2]
[330939641,1719954649728,-514.86,0.00014337,2]
[330939642,1719954649737,-500.0,0.00014338,2]
[330939643,1719954649747,-554.96,0.00014338,2]
[330939644,1719954649756,-599.13,0.00014338,2]
[330939645,1719954649766,-650.16,0.00014338,2]
[330939646,1719954649776,-362.12,0.00014338,2]
[330939647,1719954649786,-355.1,0.00014338,2]
[330939648,1719954649796,-184.09,0.00014338,2]
[330939649,1719954649805,-500.0,0.00014338,2]
[330939650,1719954649815,-511.85967102,0.00014338,2]
[330939651,1719954649825,-324.44,0.00014338,2]
[330939652,1719954649835,-500.0,0.00014338,2]
[330939653,1719954649844,-719.44,0.00014338,2]
[330939654,1719954649853,-278.17,0.00014338,2]
[330939655,1719954649864,-500.0,0.00014338,2]
[330939656,1719954649873,-328.84,0.00014338,2]
[330939657,1719954649885,-500.0,0.00014338,2]
[330939658,1719954649894,-500.0,0.00014338,2]
[330939659,1719954649904,-500.0,0.00014338,2]
[330939660,1719954649914,-577.34,0.00014338,2]
[330939661,1719954649924,-282.95,0.00014338,2]
[330939662,1719954649933,-213.19,0.00014338,2]
[330939663,1719954649943,-500.0,0.00014338,2]
[330939664,1719954649953,-673.63,0.00014338,2]
[330939665,1719954649963,-500.0,0.00014338,2]
[330939666,1719954649972,-526.19,0.00014338,2]
[330939667,1719954649981,-1069.26,0.00014338,2]
[330939668,1719954649991,-183.6,0.00014338,2]
[330939669,1719954650000,-500.0,0.00014338,2]
[330939670,1719954650010,-500.0,0.00014338,2]
[330939671,1719954650019,-999.26,0.00014338,2]
[330939672,1719954650029,-500.0,0.00014338,2]
[330939673,1719954650038,-520.76,0.00014338,2]
[330939674,1719954650047,-500.0,0.00014338,2]
[330939675,1719954650056,-814.91,0.00014338,2]
[330939676,1719954650066,-500.0,0.00014338,2]
[330939677,1719954650075,-1259.8,0.00014338,2]
[330939678,1719954650084,-370.36,0.00014338,2]
[330939679,1719954650094,-712.85,0.00014338,2]
[330939680,1719954650103,-562.68,0.00014338,2]
[330939681,1719954650112,-978.54,0.00014339,2]
[330939682,1719954650121,-500.0,0.00014339,2]
[330939683,1719954650130,-500.0,0.00014339,2]
[330939684,1719954650139,-619.4,0.00014339,2]
[330939685,1719954650149,-739.74,0.00014339,2]
[330939686,1719954650159,-634.14,0.00014339,2]
[330939687,1719954650168,-807.88,0.00014339,2]
[330939688,1719954650177,-617.83,0.00014339,2]
[330939689,1719954650186,-295.1,0.00014339,2]
[330939690,1719954650197,-500.0,0.00014339,2]
[330939691,1719954650207,-500.0,0.00014339,2]
[330939692,1719954650216,-514.86,0.00014339,2]
[330939693,1719954650225,-723.55,0.0001434,2]
[330939694,1719954650234,-155.754449,0.0001434,2]
[330939695,1719954650243,-500.0,0.0001434,2]
[330939696,1719954650253,-6394.19,0.0001434,2]
[330939697,1719954650262,-500.0,0.0001434,2]
[330939698,1719954650272,-3416.15,0.0001434,2]
[330939699,1719954650282,-500.0,0.0001434,2]
[330939700,1719954650290,-500.0,0.0001434,2]
[330939701,1719954650299,-566.29,0.0001434,2]
[330939702,1719954650308,-4113.83,0.0001434,2]
[330939703,1719954650317,-500.0,0.0001434,2]
[330939704,1719954650327,-501.05,0.0001434,2]
[330939705,1719954650336,-4219.05,0.0001434,2]
[330939706,1719954650345,-1507.1,0.0001434,2]
[330939707,1719954650354,-4448.97,0.0001434,2]
[330939708,1719954650363,-998.72,0.0001434,2]
[330939709,1719954650373,-8179.43,0.0001434,2]
[330939710,1719954650382,-1108.76,0.0001434,2]
[330939711,1719954650391,-6831.37,0.0001434,2]
[330939712,1719954650400,-500.0,0.00014341,2]
[330939713,1719954650409,-5199.49,0.00014341,2]
[330939714,1719954650418,-500.0,0.00014351,2]
[330939715,1719954650427,-500.0,0.00014351,2]
[330939716,1719954650436,-594.53489577,0.00014351,2]
[330939717,1719954650446,-514.86,0.00014351,2]
[330939718,1719954650455,-500.0,0.00014352,2]
[330939719,1719954650464,-164.371,0.0001448,2]
[330939720,1719954650474,-877.0,0.00014559,2]
[330939721,1719954650484,-150.0,0.00014562,2]
[330939722,1719954650493,-500.0,0.0001461,2]
[330939723,1719954650503,-500.0,0.0001461,2]
[330939724,1719954650512,-500.0,0.0001461,2]
[330939725,1719954650523,-500.0,0.0001461,2]
[330939726,1719954650532,-500.0,0.0001461,2]
[330939727,1719954650543,-2927.31,0.0001461,2]
[330939728,1719954650553,-552.08699475,0.0001461,2]
[330939729,1719954650563,-1273.37,0.0001461,2]
[330939730,1719954650572,-633.36,0.0001461,2]
[330939731,1719954650582,-500.0,0.0001461,2]
[330939732,1719954650592,-1769.97,0.0001461,2]
[330939733,1719954650602,-2119.11,0.0001461,2]
[330939734,1719954650611,-2303.52,0.0001461,2]
[330939735,1719954650623,-1174.15,0.0001461,2]
[330939736,1719954650631,-14315.91,0.0001461,2]
[330939737,1719954650640,-514.86,0.0001461,2]
[330939738,1719954650650,-514.86,0.0001461,2]
[330939739,1719954650659,-514.86,0.0001461,2]
[330939740,1719954650668,-514.86,0.0001461,2]
[330939741,1719954650678,-514.86,0.0001461,2]
[330939742,1719954650687,-176001.94465299,0.00014611,2]
[330939743,1719954650697,-308.73,0.00014611,2]
[330939744,1719954650707,-1059.78,0.00014611,2]
[330939745,1719954650717,-500.0,0.00014611,2]
[330939746,1719954650727,-500.0,0.00014611,2]
[330939747,1719954650737,-500.0,0.00014611,2]
[330939748,1719954650746,-1209.66,0.00014611,2]
[330939749,1719954650756,-302.61,0.00014611,2]
[330939750,1719954650765,-500.0,0.00014611,2]
[330939751,1719954650774,-289.85,0.00014611,2]
[330939752,1719954650784,-996.24,0.00014611,2]
[330939753,1719954650793,-500.0,0.00014611,2]
[330939754,1719954650802,-1240.12,0.00014611,2]
[330939755,1719954650811,-500.0,0.00014611,2]
[330939756,1719954650821,-543.8,0.00014611,2]
[330939757,1719954650830,-500.0,0.00014611,2]
[330939758,1719954650839,-540.53,0.00014611,2]
[330939759,1719954650849,-602.41,0.00014611,2]
[330939760,1719954650858,-504.12,0.00014611,2]
[330939761,1719954650867,-500.0,0.00014611,2]
[330939762,1719954650877,-1051.05,0.00014611,2]
[330939763,1719954650886,-500.0,0.00014611,2]
[330939764,1719954650896,-500.0,0.00014611,2]
[330939765,1719954650905,-500.0,0.00014611,2]
[330939766,1719954650914,-3811.8,0.00014611,2]
[330939767,1719954650923,-334.73,0.00014611,2]
[330939768,1719954650933,-500.0,0.00014611,2]
[330939769,1719954650942,-590.78,0.00014611,2]
[330939770,1719954650951,-500.0,0.00014611,2]
[330939771,1719954650960,-307.34,0.00014611,2]
[330939772,1719954650969,-274.49,0.00014611,2]
[330939773,1719954650978,-500.0,0.00014611,2]
[330939774,1719954650987,-590.09,0.00014611,2]
[330939775,1719954650996,-996.56,0.00014611,2]
[330939776,1719954651006,-500.0,0.00014611,2]
[330939777,1719954651015,-4724.55,0.00014611,2]
[330939778,1719954651025,-690.54,0.00014611,2]
[330939779,1719954651035,-500.0,0.00014611,2]
[330939780,1719954651044,-756.32,0.00014611,2]
[330939781,1719954651057,-500.0,0.00014611,2]
[330939782,1719954651067,-514.86,0.00014611,2]
[330939783,1719954651078,-500.0,0.00014612,2]
[330939784,1719954651088,-554.96,0.00014612,2]
[330939785,1719954651099,-650.16,0.00014612,2]
[330939786,1719954651108,-500.0,0.00014612,2]
[330939787,1719954651118,-500.0,0.00014612,2]
[330939788,1719954651128,-719.44,0.00014612,2]
[330939789,1719954651138,-500.0,0.00014612,2]
[330939790,1719954651148,-500.0,0.00014612,2]
[330939791,1719954651156,-500.0,0.00014612,2]
[330939792,1719954651167,-500.0,0.00014612,2]
[330939793,1719954651176,-500.0,0.00014612,2]
[330939794,1719954651186,-673.63,0.00014612,2]
[330939795,1719954651195,-526.19,0.00014612,2]
[330939796,1719954651204,-1069.26,0.00014612,2]
[330939797,1719954651214,-999.26,0.00014612,2]
[330939798,1719954651224,-500.0,0.00014612,2]
[330939799,1719954651233,-520.76,0.00014612,2]
[330939800,1719954651243,-500.0,0.00014612,2]
[330939801,1719954651252,-814.91,0.00014612,2]
[330939802,1719954651262,-500.0,0.00014612,2]
[330939803,1719954651271,-1259.8,0.00014612,2]
[330939804,1719954651280,-712.85,0.00014612,2]
[330939805,1719954651290,-978.54,0.00014613,2]
[330939806,1719954651299,-500.0,0.00014613,2]
[330939807,1719954651308,-619.4,0.00014613,2]
[330939808,1719954651318,-739.74,0.00014613,2]
[330939809,1719954651444,-634.14,0.00014613,2]
[330939810,1719954651454,-807.88,0.00014613,2]
[330939811,1719954651464,-617.83,0.00014613,2]
[330939812,1719954651473,-500.0,0.00014613,2]
[330939813,1719954651482,-500.0,0.00014613,2]
[330939814,1719954651491,-500.0,0.00014613,2]
[330939815,1719954651501,-514.86,0.00014613,2]
[330939816,1719954651510,-514.86,0.00014613,2]
[330939817,1719954651519,-514.86,0.00014613,2]
[330939818,1719954651531,-514.86,0.00014613,2]
[330939819,1719954651546,-514.9035021,0.00014613,2]
[330939820,1719954651556,-723.55,0.00014614,2]
[330939821,1719954651564,-420.36,0.00014614,2]
[330939822,1719954651575,-6394.19,0.00014614,2]
[330939823,1719954651585,-500.0,0.00014614,2]
[330939824,1719954651595,-3416.15,0.00014614,2]
[330939825,1719954651604,-500.0,0.00014614,2]
[330939826,1719954651616,-500.0,0.00014614,2]
[330939827,1719954651626,-4113.83,0.00014614,2]
[330939828,1719954651635,-500.0,0.00014614,2]
[330939829,1719954651645,-4219.05,0.00014614,2]
[330939830,1719954651654,-1507.1,0.00014614,2]
[330939831,1719954651664,-4448.97,0.00014614,2]
[330939832,1719954651673,-998.72,0.00014614,2]
[330939833,1719954651682,-8179.43,0.00014614,2]
[330939834,1719954651691,-1108.76,0.00014614,2]
[330939835,1719954651701,-500.0,0.00014615,2]
[330939836,1719954651710,-5199.49,0.00014615,2]
[330939837,1719954651719,-550.99411639,0.00014698,2]
[330939838,1719954651728,-595.0,0.000147,2]
[330939839,1719954651738,-500.0,0.00014884,2]
[330939840,1719954651747,-2927.31,0.00014884,2]
[330939841,1719954651757,-1273.37,0.00014884,2]
[330939842,1719954651766,-633.36,0.00014884,2]
[330939843,1719954651775,-500.0,0.00014884,2]
[330939844,1719954651784,-813.91424314,0.00014884,2]
[330939846,1719954790427,884.32777391,0.00013965,2]
[330939851,1719955070821,932.65809961,0.00013962,2]
[330939852,1719955083616,273.37336231,9.9e-05,2]
[330939853,1719955092023,273.37336231,9.9e-05,2]
[330939854,1719955100785,273.37336231,9.9e-05,2]
[330939857,1719955108705,273.37336231,9.9e-05,2]
[330939858,1719955117964,273.37336231,9.9e-05,2]
[330939859,1719955127041,273.37336231,9.9e-05,2]
[330939860,1719955135173,273.37336231,9.9e-05,2]
[330939861,1719955143757,273.37336231,9.9e-05,2]
[330939862,1719955151830,273.37336231,9.9e-05,2]
[330939863,1719955154368,154.96125969,9.9e-05,2]
[330939865,1719955159659,273.37336231,9.9e-05,2]
[330939867,1719955168319,273.37336231,9.9e-05,2]
[330939868,1719955175474,226.9008053,0.00012,2]
[330939869,1719955176713,273.37336231,9.9e-05,2]
[330939871,1719955185394,273.37336231,9.9e-05,2]
[330939872,1719955187830,154.86836189,0.00012,2]
[330939873,1719955191633,4695.19875852,0.00012,2]
[330939874,1719955193212,273.37336231,9.9e-05,2]
[330939875,1719955196901,204.47475561,0.00013962,2]
[330939876,1719955202576,273.37336231,9.9e-05,2]
[330939877,1719955203146,155.000775,0.00012,2]
[330939878,1719955209328,16234.89449455,9.9e-05,2]
[330939879,1719955210431,273.37336231,9.9e-05,2]
[330939880,1719955219254,273.37336231,9.9e-05,2]
[330939881,1719955227283,273.37336231,9.9e-05,2]
[330939882,1719955231635,4690.19200718,0.00012,2]
[330939883,1719955235368,273.37336231,9.9e-05,2]
[330939885,1719955244118,273.37336231,9.9e-05,2]
[330939886,1719955252795,273.37336231,9.9e-05,2]
[330939887,1719955261297,273.37336231,9.9e-05,2]
[330939888,1719955269225,5971.2167905,0.00013064,2]
[330939889,1719955270372,273.37336231,9.9e-05,2]
[330939890,1719955278159,273.37336231,9.9e-05,2]
[330939891,1719955286584,273.37336231,9.9e-05,2]
[330939892,1719955294397,273.37336231,9.9e-05,2]
[330939893,1719955303171,273.37336231,9.9e-05,2]
[330939894,1719955307817,7176.25046686,9.9e-05,2]
[330939895,1719955311092,273.37336231,9.9e-05,2]
[330939896,1719955319294,273.37336231,9.9e-05,2]
[330939897,1719955327122,273.37336231,9.9e-05,2]
[330939898,1719955329833,154.86836189,9.9e-05,2]
[330939899,1719955335200,273.37336231,9.9e-05,2]
[330939900,1719955343097,273.37336231,9.9e-05,2]
[330939901,1719955351231,273.37336231,9.9e-05,2]
[330939902,1719955356144,880.94828367,0.00013962,2]
[330939903,1719955358002,934.12399024,0.00012,2]
[330939904,1719955358972,273.37336231,9.9e-05,2]
[330939905,1719955361135,4695.19875852,9.9e-05,2]
[330939906,1719955367654,273.37336231,9.9e-05,2]
[330939907,1719955375479,273.37336231,9.9e-05,2]
[330939908,1719955376318,203.83193932,0.00012,2]
[330939909,1719955383900,273.37336231,9.9e-05,2]
[330939910,1719955391735,273.37336231,9.9e-05,2]
[330939911,1719955399773,273.37336231,9.9e-05,2]
[330939912,1719955400925,9660.0,0.0001,2]
[330939913,1719955406998,281.30939704,0.00012,2]
[330939914,1719955408645,4575.86829546,0.00012,2]
[330939915,1719955413782,240.93868019,0.00012,2]
[330939916,1719955415133,273.37336231,9.9e-05,2]
[330939917,1719955423877,273.37336231,9.9e-05,2]
[330939918,1719955432814,273.37336231,9.9e-05,2]
[330939919,1719955440751,273.37336231,9.9e-05,2]
[330939926,1719955602713,327.15960896,0.00013961,2]
[330939927,1719955604688,327.15960894,0.00013962,2]
[330939928,1719955606719,327.15960894,0.00013962,2]
[330939929,1719955608714,327.15960894,0.00013963,2]
[330939930,1719955610741,327.15960894,0.00013963,2]
[330939931,1719955636559,827.59313882,0.00013961,2]
[330939934,1719955698196,-300.0,0.0001406,2]
[330939935,1719955698225,-352.88271446,0.00014061,2]
[330939936,1719955698265,-147.11728554,0.00014061,2]
[330939937,1719955698294,-500.0,0.00014061,2]
[330939938,1719955698322,-5.76542892,0.00014061,2]
[330939940,1719955722567,-494.23457108,0.00014061,2]
[330939941,1719955722595,-184.76345195,0.00014061,2]
[330939942,1719955722636,-315.23654805,0.00014061,2]
[330939943,1719955722664,-363.76147498,0.00014061,2]
[330939946,1719955747552,-574.98712528,0.0001406,2]
[330939947,1719955747580,-131.17081868,0.0001406,2]
[330939948,1719955747615,-168.82918132,0.0001406,2]
[330939949,1719955747643,-420.49720089,0.0001406,2]
[330939951,1719955772682,-109.07279911,0.0001406,2]
[330939952,1719955772712,-622.99483137,0.0001406,2]
[330939953,1719955772831,-584.04472383,0.0001406,2]
[330939958,1719955797657,-478.2104448,0.0001406,2]
[330939959,1719955797689,-136.23852502,0.00014061,2]
[330939960,1719955797718,-143.94090774,0.00014061,2]
[330939961,1719955797756,-356.05909226,0.00014061,2]
[330939962,1719955797785,-212.72398672,0.00014061,2]
[330940022,1719955833164,-206.0,0.0001406,2]
[330940024,1719955833174,-104.0,0.0001406,2]
[330940030,1719955833228,-396.0,0.0001406,2]
[330940032,1719955833238,-423.09999391,0.0001406,2]
[330940035,1719955833250,-76.90000609,0.0001406,2]
[330940037,1719955833259,-1357.86349391,0.0001406,2]
[330940039,1719955833271,-794.36569708,0.0001406,2]
[330940276,1719955837912,-3538.28272846,0.0001406,2]
[330940279,1719955837985,-8061.67808055,0.0001406,2]
[330940280,1719955837995,-181.50970077,0.0001406,2]
[330940281,1719955838005,-287.27601328,0.00014061,2]
[330940282,1719955838015,-1222.91,0.00014061,2]
[330940283,1719955838026,-500.0,0.00014061,2]
[330940284,1719955838036,-500.0,0.00014061,2]
[330940285,1719955838046,-500.0,0.00014061,2]
[330940286,1719955838056,-500.0,0.00014061,2]
[330940287,1719955838066,-500.0,0.00014061,2]
[330940288,1719955838076,-1025.98,0.00014061,2]
[330940291,1719955838086,-1269.58,0.00014061,2]